[Event "26th Womens ECCC 2022"]
[Site "Mayrhofen"]
[Date "2022.10.06"]
[Round "4.28"]
[White "Thomas, Apolline"]
[Black "Zarkovic, Mila"]
[Result "0-1"]
[ECO "B23"]
[WhiteElo "1942"]
[BlackElo "2219"]
[Annotator "TA"]
[PlyCount "108"]
[EventDate "2022.10.03"]
[EventType "team-tourn"]
[EventCountry "AUT"]
[SourceTitle "playchess.com"]
[Source "ChessBase"]
[SourceQuality "1"]
[TimeControl "40/5400+30:1800+30"]

{[%evp 9,108,11,10,6,14,4,12,8,28,0,0,-7,0,-3,-14,-10,-10,-54,-62,-71,-72,-63,-66,-104,-72,-56,-45,-92,-60,-57,0,0,0,0,0,0,364,375,354,393,385,386,474,479,478,478,454,444,400,306,396,322,358,306,419,147,139,131,292,176,187,162,212,167,220,156,178,161,189,179,164,149,157,0,152,129,158,91,90,90,97,88,103,-85,-66,-617,-611,-664,-656,-1164,-1119,-1618,-1638,-1321,-1041,-1041,-1041,-3391,-2310,-29954,-12299]} 1. e4 {[%emt 0:00:03]} c5 {[%emt 0:00:05]} 2. Nc3 {[%emt 0:00:13]} e6 {[%emt 0:00:12]} 3. Nf3 {[%emt 0:00:50]} Nc6 {[%emt 0:06:57]} 4. Bb5 {[%emt 0:04:56]} Nge7 {[%emt 0:09:25]} 5. d4 {[%emt 0:09:43]} cxd4 {[%emt 0:00:32]} 6. Nxd4 {[%emt 0:00:06] B30: Sicilian: 2...Nc6 3 Bb5, lines without ...g6.} a6 {[%emt 0:13:57] White must now prevent ...Nxd4.} 7. Nxc6 {[%emt 0:03:30]} Nxc6 {[%emt 0:00:25]} 8. Be2 {[%emt 0:07:06] The position is equal.} Be7 {[%emt 0:06:27]} 9. Be3 {[%emt 0:02:49]} b5 {[%emt 0:00:22] Inhibits Na4.} 10. a3 {[%emt 0:07:09]} O-O {[%emt 0:00:47]} 11. O-O {[%emt 0:00:07]} Bb7 {[%emt 0:02:33]} 12. f4 {[%emt 0:09:33]} d6 {[%emt 0:00:11] [#]} 13. Bg4 $146 {[%emt 0:10:46]} ({Predecessor:} 13. Bf3 Qc7 14. Qe1 Na5 15. Qg3 Bf6 16. Rad1 Nc4 17. Bd4 Bxd4+ 18. Rxd4 {0-1 (41) Botton Lazo,R-Llacsahuanga,D (2064) Piura 2013}) 13... Bf6 {[%emt 0:15:40]} 14. f5 {[%emt 0:03:00]} Qe7 {[%emt 0:01:22]} 15. fxe6 {[%emt 0:08:19]} fxe6 {[%emt 0:00:05]} 16. Rxf6 {[%emt 0:01:15]} Qxf6 {[%emt 0:09:51]} (16... Rxf6 $6 17. Bg5 $15) 17. Qxd6 {[%emt 0:01:28]} Rae8 {[%emt 0:00:21]} 18. Bh5 {[%emt 0:06:00]} (18. Rd1 $15 {should be considered.}) 18... Rd8 {[%emt 0:09:36] The board is on fire.} 19. Qg3 {[%emt 0:00:20]} (19. Qc7 Nd4 $1 20. Rb1 (20. Qxb7 $2 Nxc2 21. e5 Qxe5 $19) 20... Nxc2 $17) 19... Qe5 {[%emt 0:04:02]} (19... g6 $15) 20. Qxe5 $1 $11 {[%emt 0:00:04]} Nxe5 {[%emt 0:00:06]} 21. Bc5 {[%emt 0:00:16]} Rf4 {[%emt 0:05:09]} 22. g3 $40 {[%emt 0:01:04][%mdl 128] White has some attack.} Nf3+ $2 {[%emt 0:01:36][%mdl 8192] [#]} (22... Rf3 $11 {and Black has nothing to worry.}) 23. Kf2 $1 $18 {[%emt 0:00:41]} Rd2+ {[%emt 0:08:54]} 24. Ke3 {[%emt 0:00:09]} Rxh2 {[%emt 0:00:32][%cal Of4e4]} 25. Bxf3 {[%emt 0:02:40] This bishop pair is nice.} ({Less strong is} 25. Kxf4 Rxh5 26. Bd6 (26. Kxf3 Rxc5 27. Rd1 Bc8 $11) 26... Ng5 $14) 25... Rf6 {[%emt 0:01:16]} 26. Rd1 {[%emt 0:00:38]} h5 {[%emt 0:00:29]} 27. Rd8+ {[%emt 0:06:53]} Kh7 {[%emt 0:00:01]} 28. Rd7 {[%emt 0:00:20]} Bc6 {[%emt 0:00:27]} 29. Rd6 {[%emt 0:00:26]} Bb7 {[%emt 0:01:22]} 30. Ne2 {[%emt 0:03:21]} e5 {[%emt 0:01:35]} 31. Rd8 {[%emt 0:08:46]} Rf7 {[%emt 0:01:05]} 32. Rf8 $2 {[%emt 0:02:43]} (32. Bd6 $18 {is the precise move to win.}) 32... Rxf8 $16 {[%emt 0:00:32]} 33. Bxf8 {[%emt 0:00:01] aiming for Bd6.} Kg6 $2 {[%emt 0:00:12]} (33... g5 $16) 34. Be7 {[%emt 0:00:32]} Kf7 {[%emt 0:00:26]} 35. Bd8 {[%emt 0:00:09]} g6 {[%emt 0:00:24]} (35... Bc8 {might work better.} 36. Bc7 Kf6) 36. b3 {[%emt 0:00:33][%cal Bb2b3,Bb3c4,Bc4c5][%mdl 32]} Ke6 {[%emt 0:00:41]} (36... Bc8 {is a better defense.} 37. c4 Be6) 37. c4 {[%emt 0:00:43]} bxc4 {[%emt 0:00:05]} 38. bxc4 {[%emt 0:00:01]} Bc6 {[%emt 0:00:36]} 39. c5 {[%emt 0:02:04]} Kd7 {[%emt 0:00:29]} 40. Bf6 {[%emt 0:00:26]} Ke6 {[%emt 0:00:04]} 41. Bd8 {[%emt 0:07:46]} Kd7 {[%emt 0:00:37]} 42. Bg5 {[%emt 0:00:44]} Ke6 {[%emt 0:01:51] [#]} 43. Nc3 {[%emt 0:09:09]} (43. Bh4 $142 $1) 43... Rc2 {[%emt 0:04:14]} 44. Kd3 {[%emt 0:00:55]} Rf2 {[%emt 0:00:05]} 45. Bd1 {[%emt 0:00:45]} Rg2 {[%emt 0:00:30]} 46. Bh4 {[%emt 0:03:14]} ({Don't take} 46. Bb3+ Kd7 47. g4 hxg4 $11) (46. Ne2 $16 {stays on course.}) 46... g5 $1 $17 {[%emt 0:02:38][%mdl 64] Decoy. Black is more active.} 47. Bxg5 $2 {[%emt 0:00:04][%mdl 8192]} (47. Bxh5 $15 gxh4 48. gxh4) 47... Rxg3+ $19 {[%emt 0:00:05]} 48. Be3 {[%emt 0:00:01]} h4 {[%emt 0:00:18][%cal Bh5h4,Bh4h3,Bh3h2][%mdl 32] And now ...h3 would win.} 49. Bb3+ {[%emt 0:03:51]} Kd7 {[%emt 0:01:15]} 50. Nd1 {[%emt 0:05:22]} h3 {[%emt 0:10:44] ...h2 is the strong threat.} 51. Nf2 {[%emt 0:00:05]} Bb5+ {[%emt 0:02:39]} 52. Kd2 {[%emt 0:00:31]} Rg2 {[%emt 0:00:33] Threatens to win with ...h2.} 53. Ke1 {[%emt 0:01:44]} h2 {[%emt 0:00:18][%cal Og2f2] ( -> ...Rxf2!)} 54. Bd1 {[%emt 0:00:24] [#]} Rxf2 $1 {[%emt 0:00:29][%mdl 576] Promotion.  Weighted Error Value: White=0.88/Black=0.36} 0-1

[Event "26th Womens ECCC 2022"]
[Site "Mayrhofen"]
[Date "2022.10.06"]
[Round "4.29"]
[White "Ptacnikova, Lenka"]
[Black "Peglau, Charis"]
[Result "1-0"]
[ECO "A13"]
[WhiteElo "2055"]
[BlackElo "1960"]
[Annotator "TA"]
[PlyCount "125"]
[EventDate "2022.10.03"]
[EventType "team-tourn"]
[EventCountry "AUT"]
[SourceTitle "playchess.com"]
[Source "ChessBase"]
[SourceQuality "1"]
[TimeControl "40/5400+30:1800+30"]

{[%evp 16,125,1,-27,-20,-13,-18,-15,-22,-48,-14,-15,-22,-16,-12,-12,0,-19,-16,-22,-8,-14,-13,-16,-16,-32,-14,-20,-6,-10,-10,-9,0,-10,0,-11,0,-45,0,-37,-31,-27,-20,-11,58,35,35,35,107,107,107,107,111,95,95,95,95,95,95,95,95,95,95,95,95,57,222,227,227,213,206,206,206,136,205,198,136,136,2230,2214,1845,1658,1758,1580,1626,1577,1481,1362,1470,1342,1548,1403,1367,1330,1197,1195,1019,1032,29978,29979,29978,29979,29976,955,29981,29982,29984,29985,29985,29986,29986,29987]} 1. c4 {[%emt 0:00:03]} e6 {[%emt 0:00:10]} 2. Nf3 {[%emt 0:00:45]} Nf6 {[%emt 0:00:12]} 3. e3 {[%emt 0:02:06]} d5 {[%emt 0:00:55]} 4. b3 {[%emt 0:00:12]} Be7 {[%emt 0:01:06]} 5. Bb2 {[%emt 0:00:25]} O-O {[%emt 0:01:24]} 6. Be2 {[%emt 0:00:18]} c5 {[%emt 0:00:47]} 7. cxd5 {[%emt 0:00:36]} Nxd5 {[%emt 0:01:12]} 8. O-O {[%emt 0:00:33]} Nc6 {[%emt 0:00:44]} 9. a3 {[%emt 0:08:13]} b6 {[%emt 0:02:22] A13: English Opening: 1...e6.} 10. Qc2 {[%emt 0:04:40]} Bb7 {[%emt 0:00:51]} 11. Rd1 {[%emt 0:01:03]} Rc8 {[%emt 0:02:16] The position is equal.} 12. d3 {[%emt 0:03:20]} Bf6 {[%emt 0:06:00]} 13. Nbd2 {[%emt 0:07:29] [#]} Bxb2 $146 {[%emt 0:11:11]} ({Predecessor:} 13... Qe7 14. Rac1 Rfd8 15. Nc4 Ba8 16. Bf1 Bb7 17. Qb1 Ba8 18. Rc2 Bxb2 19. Qxb2 Qf6 {½-½ (29) Stein,B (2360)-Heidrich,M (2260) Germany 1987}) 14. Qxb2 {[%emt 0:01:01]} Qf6 {[%emt 0:00:51]} 15. Qxf6 {[%emt 0:01:24]} Nxf6 {[%emt 0:00:09]} 16. Nc4 {[%emt 0:00:12]} Rfd8 {[%emt 0:01:30] Prevents Nd6.} 17. h3 {[%emt 0:00:37]} Nd5 {[%emt 0:01:21]} 18. Rdc1 {[%emt 0:00:34] Against Nc3} f6 {[%emt 0:08:52]} 19. g4 {[%emt 0:07:18]} g5 {[%emt 0:08:14]} 20. Kh2 {[%emt 0:04:49]} Kg7 {[%emt 0:01:30]} 21. Kg3 {[%emt 0:00:32]} h6 {[%emt 0:05:11]} 22. h4 {[%emt 0:00:17]} Rc7 {[%emt 0:17:59]} 23. Rc2 {[%emt 0:06:13]} Rcd7 {[%emt 0:02:07]} 24. Rac1 {[%emt 0:01:20]} Nde7 {[%emt 0:05:21]} 25. hxg5 {[%emt 0:07:59]} hxg5 {[%emt 0:00:06]} 26. Bf1 {[%emt 0:02:38]} Ng6 {[%emt 0:01:49]} 27. Nb2 {[%emt 0:07:50]} Nce5 {[%emt 0:05:11]} 28. Nxe5 {[%emt 0:04:12]} Nxe5 {[%emt 0:00:02]} 29. b4 $1 {[%emt 0:01:30]} Ba6 {[%emt 0:06:40]} (29... cxb4 $11 30. axb4 f5) 30. d4 {[%emt 0:11:33]} Bxf1 {[%emt 0:00:14]} 31. dxe5 {[%emt 0:00:17]} Bd3 {[%emt 0:01:16]} (31... Rd2 $1 $14 32. Rxd2 Rxd2) 32. Nxd3 $16 {[%emt 0:02:09]} Rxd3 {[%emt 0:00:02]} 33. bxc5 {[%emt 0:00:43]} fxe5 {[%emt 0:05:18]} 34. cxb6 {[%emt 0:03:49]} axb6 {[%emt 0:00:08][%mdl 4096] Endgame KRR-KRR} 35. Rc7+ {[%emt 0:01:56]} R8d7 {[%emt 0:02:16]} 36. Rxd7+ {[%emt 0:00:25]} Rxd7 {[%emt 0:00:02] KR-KR} 37. Rc6 {[%emt 0:00:09][%csl LRb6,LRe6]} Kf6 {[%emt 0:00:05]} 38. Rxb6 {[%emt 0:00:22]} Ra7 {[%emt 0:00:06]} 39. Rb3 {[%emt 0:00:14]} Ra4 {[%emt 0:00:41]} 40. f3 {[%emt 0:00:46] And now e4 would win.} Ra5 $2 {[%emt 0:02:54] [#]} ({Black should play} 40... e4 $1 $14) 41. e4 $1 $18 {[%emt 0:31:33]} Ke7 {[%emt 0:08:42]} 42. Rd3 {[%emt 0:00:00]} Ra6 {[%emt 0:02:20]} 43. Kf2 {[%emt 0:00:00]} Rb6 {[%emt 0:00:59]} 44. Ke2 {[%emt 0:00:00]} Rb2+ {[%emt 0:02:35] [#]} (44... Rb8 $16 45. a4 Ra8) 45. Kd1 $1 {[%emt 0:00:00]} Rf2 {[%emt 0:04:42]} (45... Ra2 $18 46. Kc1 Rh2) 46. Kc1 $16 {[%emt 0:00:00] Kb1 is the strong threat.} Rf1+ $2 {[%emt 0:00:25][%mdl 8192] Loses the game.} (46... Rh2 $16 47. Kb1 Rh8) 47. Kb2 $18 {[%emt 0:00:00]} Rf2+ {[%emt 0:00:18]} 48. Kb3 {[%emt 0:00:00] White wants to mate with a4.} Rf1 {[%emt 0:00:04]} 49. a4 {[%emt 0:00:00]} Rb1+ {[%emt 0:00:34]} 50. Kc4 {[%emt 0:00:00]} Ra1 {[%emt 0:00:33]} 51. Kb4 {[%emt 0:00:00] Threatening mate with a5.} Rb1+ {[%emt 0:01:00]} 52. Rb3 {[%emt 0:00:00]} Ra1 {[%emt 0:00:29]} 53. Kb5 {[%emt 0:02:58]} Kd6 {[%emt 0:00:35]} 54. a5 {[%emt 0:00:34] Kb6 would kill now.} Kc7 {[%emt 0:00:40]} 55. a6 {[%emt 0:00:39]} Ra2 {[%emt 0:01:14]} 56. Rc3+ {[%emt 0:00:24]} Kd7 {[%emt 0:01:54]} 57. Rc4 {[%emt 0:01:26]} Ra1 {[%emt 0:03:50]} 58. Ra4 {[%emt 0:00:55]} Rb1+ {[%emt 0:00:05]} 59. Rb4 {[%emt 0:03:01]} (59. Ka5 $142 Kc8 60. Rc4+ Kb8 61. Rb4+ Rxb4 62. Kxb4 Ka8 63. Kc4 Ka7 64. Kb5) 59... Ra1 {[%emt 0:00:09]} 60. Kb6 {[%emt 0:00:27] White mates.} Kc8 {[%emt 0:01:13]} 61. a7 {[%emt 0:00:21]} Ra3 {[%emt 0:00:22]} 62. Rc4+ {[%emt 0:00:24]} Kd7 {[%emt 0:01:27]} 63. Rc5 {[%emt 0:00:18] Weighted Error Value: White=0.07 (flawless) /Black=0.41} 1-0

[Event "26th Womens ECCC 2022"]
[Site "Mayrhofen"]
[Date "2022.10.06"]
[Round "4.30"]
[White "Peglau, Dora"]
[Black "Johannsdottir, Johanna Bjorg"]
[Result "1/2-1/2"]
[ECO "A40"]
[WhiteElo "1745"]
[BlackElo "1964"]
[Annotator "TA"]
[PlyCount "169"]
[EventDate "2022.10.03"]
[EventType "team-tourn"]
[EventCountry "AUT"]
[SourceTitle "playchess.com"]
[Source "ChessBase"]
[SourceQuality "1"]
[TimeControl "40/5400+30:1800+30"]

{[%evp 15,169,17,40,-1,0,-33,0,-13,0,-6,-1,-16,0,-6,-2,-18,-17,-111,-103,-108,-103,-108,7,-122,-52,-136,-127,-128,-121,-120,-115,-114,-99,-90,-89,-103,-98,-129,-125,-128,-131,-131,-131,-133,-135,-150,-157,-185,-179,-181,-185,-201,-189,-229,-229,-235,-235,-225,-233,-250,-250,-292,-254,-293,-216,-233,-207,-246,-235,-374,-356,-470,-458,-504,-391,-629,-652,-675,-292,-381,0,-675,-675,-592,-566,-1070,-850,-846,-808,-791,-623,-576,-349,-142,0,-80,-85,-6842,-6980,-5173,-2197,-1539,-654,-1422,-8,-8,0,0,0,-8,0,0,0,-8,0,0,0,0,0,0,0,0,0,0,0,0,0,-8,-8,-8,-8,-8,-8,-8,-8,-8,-8,-8,-8,-8,-8,-8,-8,-8,-8,-8,0,0,0,0,0,0,0,0,0,0]} 1. d4 {[%emt 0:00:03]} g6 {[%emt 0:00:09]} 2. Nf3 {[%emt 0:00:12]} Bg7 {[%emt 0:00:05]} 3. Nbd2 {[%emt 0:00:10]} d6 {[%emt 0:00:28]} 4. e4 {[%emt 0:00:08]} Nd7 {[%emt 0:00:49]} 5. Bd3 {[%emt 0:00:35]} e5 {[%emt 0:02:49]} 6. c3 {[%emt 0:00:45]} Ngf6 {[%emt 0:05:00]} 7. O-O {[%emt 0:00:37]} O-O {[%emt 0:00:40]} 8. dxe5 {[%emt 0:02:59]} dxe5 $1 {[%emt 0:04:20] The main line 8...dxe5 scores better than 8...Nxe5.} 9. Nc4 {[%emt 0:02:53] B07: Pirc Defence: Miscellaneous Systems.} Nc5 {[%emt 0:02:41][%csl LRd3,LRe4] [#]} 10. Nfxe5 $146 {[%emt 0:07:40]} ({Predecessor:} 10. Bc2 Ncxe4 11. Qxd8 Rxd8 12. Ncxe5 h6 13. Bb3 Nd5 14. Re1 Nc5 15. Bc4 c6 16. Bd2 Na4 17. Bb3 Nc5 18. Bc4 Na4 19. Bb3 Nc5 {½-½ (19) Schmidt,R (1909)-Zachos,I (1975) Germany 2016}) 10... Be6 {[%emt 0:06:36]} 11. Bc2 {[%emt 0:11:32]} Ncxe4 {[%emt 0:03:13]} 12. Be3 {[%emt 0:07:04]} Qe7 {[%emt 0:07:03]} 13. Qe2 {[%emt 0:06:03]} Nd6 {[%emt 0:02:59]} 14. Nxd6 {[%emt 0:00:44]} Qxd6 {[%emt 0:00:42]} 15. Nd3 {[%emt 0:02:51]} Rfe8 {[%emt 0:03:24]} 16. Rad1 {[%emt 0:04:41]} (16. Qf3 $11) 16... Bg4 $1 $17 {[%emt 0:06:57]} ({Much less strong is} 16... Bxa2 17. Nc1 (17. Nb4 Qe6 $11) 17... Qe6 18. b3 $16) 17. f3 {[%emt 0:00:28] [#]} Bh6 $1 $36 {[%emt 0:04:41][%mdl 2048] White is under strong pressure.} 18. fxg4 {[%emt 0:13:56] Threatens to win with Nf4.} Bxe3+ {[%emt 0:02:35]} ({Better is} 18... Rxe3 $17 19. Qf2 Nxg4 20. Qxf7+ Kh8) 19. Nf2 {[%emt 0:05:39] [#]} (19. Kh1 $1 $11) 19... Qb6 {[%emt 0:02:38]} (19... Qxh2+ $1 $17 {[%mdl 512]} 20. Kxh2 Bf4+ 21. Kh1 Rxe2) 20. Ba4 {[%emt 0:03:13]} (20. Qf3 $1 $15) 20... Re4 {[%emt 0:00:43]} 21. Bc2 {[%emt 0:07:56] And now g5 would win.} Rf4 {[%emt 0:03:22]} 22. g3 {[%emt 0:05:53]} Rxf2 {[%emt 0:07:52]} 23. Rxf2 {[%emt 0:00:08][%cal Og4g5]} Bxf2+ {[%emt 0:03:24]} ({And not} 23... Nxg4 24. Qxg4 Bxf2+ 25. Kh1 $15) (23... Re8 {is interesting.} 24. Bb3 Kg7 25. Kg2 Bxf2 26. Qxf2 Qxf2+ 27. Kxf2 Nxg4+ 28. Kg1 Ne5) 24. Qxf2 {[%emt 0:00:04]} Qxf2+ {[%emt 0:00:14]} 25. Kxf2 {[%emt 0:00:05]} Nxg4+ {[%emt 0:00:07][%mdl 4096] Endgame KRB-KRN} 26. Kg1 {[%emt 0:00:19]} Ne3 {[%emt 0:02:24][%csl LRc2,LRd1]} 27. Rd2 {[%emt 0:00:07]} Nxc2 {[%emt 0:01:14]} 28. Rxc2 {[%emt 0:00:02] KR-KR} Rd8 {[%emt 0:00:09]} 29. Kf2 {[%emt 0:00:15]} f5 {[%emt 0:00:26]} 30. Re2 {[%emt 0:02:33]} Kf7 {[%emt 0:00:07] Prevents Re7+.} 31. h4 {[%emt 0:05:45]} h6 {[%emt 0:01:14]} 32. a4 {[%emt 0:02:00]} Kf6 {[%emt 0:00:17]} 33. Rc2 {[%emt 0:08:07]} Rd1 {[%emt 0:01:21]} 34. Ke2 {[%emt 0:00:46]} Ra1 {[%emt 0:03:37]} 35. b3 {[%emt 0:00:03]} Ra3 {[%emt 0:01:11]} 36. Rb2 {[%emt 0:00:04]} g5 {[%emt 0:00:23]} 37. hxg5+ {[%emt 0:00:05]} Kxg5 {[%emt 0:01:01]} 38. Kf3 {[%emt 0:00:29]} c5 {[%emt 0:00:31]} 39. c4 {[%emt 0:00:55]} Ra1 {[%emt 0:00:23]} 40. Rd2 {[%emt 0:01:57]} Rf1+ {[%emt 0:00:42]} 41. Kg2 {[%emt 0:03:03]} Rb1 {[%emt 0:00:13]} 42. Rd3 {[%emt 0:00:01]} (42. Rd7 {was necessary.} Rb2+ 43. Kf1) 42... Kg4 $19 {[%emt 0:00:10] aiming for ...a5.} 43. Kf2 {[%emt 0:01:53]} Rb2+ {[%emt 0:00:06]} 44. Kg1 {[%emt 0:00:58]} h5 {[%emt 0:00:13]} 45. Kf1 $2 {[%emt 0:01:47]} (45. a5) 45... b6 {[%emt 0:02:05]} 46. Re3 {[%emt 0:02:36]} Rd2 {[%emt 0:01:05]} (46... h4 $142 47. gxh4 Kxh4) 47. Kg1 {[%emt 0:01:32]} Rb2 $2 {[%emt 0:07:13]} (47... Ra2 $19 {Hoping for ...Rc2.} 48. Rd3 Rb2) 48. Rd3 $2 {[%emt 0:02:22][%mdl 8192]} (48. Kf1 $11 h4 49. gxh4) 48... h4 {[%emt 0:01:23]} 49. gxh4 {[%emt 0:00:13]} Kxh4 {[%emt 0:00:21]} 50. a5 {[%emt 0:04:15]} Kg4 {[%emt 0:02:02]} 51. Rd7 {[%emt 0:00:58]} Ra2 {[%emt 0:07:45]} 52. axb6 {[%emt 0:04:30]} axb6 {[%emt 0:00:07]} 53. Rd6 {[%emt 0:00:10]} Rb2 {[%emt 0:02:52]} 54. Rxb6 {[%emt 0:00:38]} Kg3 {[%emt 0:00:12]} (54... f4 $17 {Strongly threatening ...Kf3.} 55. Kf1 Kg3) 55. Kf1 {[%emt 0:02:08]} (55. Rg6+ $1 $11 {was the only way to keep the balance.} Kf3 56. Rc6) 55... f4 $17 {[%emt 0:00:38] White must now prevent ...Rb1+.} 56. Rf6 $2 {[%emt 0:02:36][%mdl 8192]} (56. Ke1 $17) 56... Rxb3 $19 {[%emt 0:00:33]} 57. Rf5 {[%emt 0:01:08]} Kf3 {[%emt 0:00:54]} (57... Rc3 $142 58. Rxc5 Rc1+ 59. Ke2 f3+ 60. Ke3 f2 61. Rg5+ Kh4 62. Rg8 f1=Q 63. Rh8+ Kg4 64. Rg8+ Kf5 65. Rf8+ Ke5 66. Rxf1 Rxf1 67. Ke2 Rf4 68. Kd2 Rxc4 69. Kd3 Rc6 70. Ke3 Rd6 71. Kf3 Rd3+ 72. Ke2 Ke4 73. Kf2 Rd4 74. Ke2 Kf4 75. Kf2 Rd2+ 76. Ke1 Ke3 77. Kf1 Kf3 78. Kg1 Rd1+ 79. Kh2 Rf1 80. Kh3 Rh1#) 58. Kg1 {[%emt 0:02:22]} Rb1+ {[%emt 0:01:10]} 59. Kh2 {[%emt 0:00:01]} Rb4 $2 {[%emt 0:01:31]} (59... Kg4 $19 60. Rf8 Rc1) 60. Rxc5 $11 {[%emt 0:00:50] The position is equal.} Kf2 {[%emt 0:00:10]} 61. Rb5 {[%emt 0:02:19] Inhibits Rb7.} Rxc4 {[%emt 0:01:28]} 62. Rb2+ {[%emt 0:00:11]} Kf1 {[%emt 0:02:00]} 63. Rb1+ {[%emt 0:00:10]} Ke2 {[%emt 0:00:20]} 64. Rb2+ {[%emt 0:00:10]} Ke1 {[%emt 0:01:19]} 65. Kg2 {[%emt 0:00:35]} Rc3 {[%emt 0:00:35]} 66. Rb1+ {[%emt 0:01:06]} Ke2 {[%emt 0:01:16]} 67. Rb2+ {[%emt 0:00:31]} Ke3 {[%emt 0:00:16]} 68. Rf2 {[%emt 0:00:50]} Rc1 {[%emt 0:00:30]} 69. Rf3+ {[%emt 0:00:51]} Ke4 {[%emt 0:00:05][%cal Oc1g1]} 70. Ra3 {[%emt 0:00:59]} Rd1 {[%emt 0:05:04]} 71. Kf2 {[%emt 0:01:10]} Rd2+ {[%emt 0:00:45]} 72. Ke1 {[%emt 0:00:38]} Rg2 {[%emt 0:01:07]} 73. Kf1 {[%emt 0:00:34]} Rh2 {[%emt 0:00:18]} 74. Kg1 {[%emt 0:00:21]} Rb2 {[%emt 0:00:23]} 75. Kf1 {[%emt 0:00:05]} Kf5 {[%emt 0:00:14]} 76. Ra5+ {[%emt 0:00:41]} Kg4 {[%emt 0:00:07]} 77. Ra3 {[%emt 0:00:06]} Rb1+ {[%emt 0:00:46]} 78. Kf2 {[%emt 0:00:07]} Rc1 {[%emt 0:00:48]} 79. Rb3 {[%emt 0:00:11]} Rc4 {[%emt 0:00:41]} 80. Ra3 {[%emt 0:00:13]} f3 {[%emt 0:00:06]} 81. Ra8 {[%emt 0:01:15]} Rc2+ {[%emt 0:00:09]} 82. Kf1 {[%emt 0:00:05]} f2 {[%emt 0:00:52]} 83. Rf8 {[%emt 0:00:55]} Kg3 {[%emt 0:00:07] ( -> ...Rc1+)} 84. Rg8+ {[%emt 0:00:05]} Kf3 {[%emt 0:00:09][%cal Rc2c1]} 85. Rf8+ {[%emt 0:00:07] Weighted Error Value: White=0.64/Black=0.55} 1/2-1/2